Cogmind - Beta 16 @@@ ROGUE MODE // 2025.11.17 @ 19:57:38 Player: Mozco Result: Destroyed by H-55 Commando with Gauss Rifle Performance ------------- Evolutions (2) 1000 Regions Visited (5) 1000 Robots Destroyed (103) 515 Value Destroyed (2900) 2900 Prototype IDs (34) 680 Alien Tech Used (0) 0 Bonus (476) 476 TOTAL SCORE: 6571 Bonus ------- High Alert Combat Kills 176 Aligned with FarCom 300 Cogmind --------- Core Integrity 0/550 Matter 280/300 Energy 170/170 System Corruption 2% Temperature Hot (250) Movement Walking (123) Location -8/Materials Parts ------- > --- POWER (1) -------- Makeshift Power Source > --- PROPULSION (4) --- Aluminum Leg Aluminum Leg Titanium Leg Makeshift Leg > --- UTILITY (4) ------ High-capacity Storage Unit Experimental Core Analyzer Makeshift Hacking Suite Makeshift Hacking Suite > --- WEAPON (2) ------- Gatling Laser Gatling Laser > --- INVENTORY (20) --- Cold Fusion Reactor Advanced Heat Sink Advanced Launcher Guidance Computer Improved Armor Integrity Analyzer Advanced Transmission Jammer Makeshift Cloaking Device System Shield System Shield Authchip [Propulsion] Authchip [Device] Authchip [Device] Sensor Drone Bay (20/20) Gatling Laser Firepult YOLO Cannon Grenade Launcher Deploy-a-Sentry Peak State ------------ > --- POWER ------------ Cold Fusion Reactor > --- PROPULSION ------- Carbon-fiber Leg Makeshift Leg Makeshift Leg Makeshift Leg > --- UTILITY ---------- Advanced Heat Sink High-capacity Storage Unit Experimental Core Analyzer EX Chip 2 > --- WEAPON ----------- Improved Spread Laser 8R-AWN's Boregun > --- INVENTORY -------- Makeshift Power Source Aluminum Leg Improved Terrain Scanner Advanced Launcher Guidance Computer Improved Armor Integrity Analyzer Advanced Transmission Jammer Makeshift Cloaking Device Light Armor Plating Makeshift Hacking Suite Makeshift Hacking Suite EX Chip 2 System Shield Sensor Drone Bay Improved Spread Laser Firepult YOLO Cannon Grenade Launcher Deploy-a-Sentry [Rating: 65] Favorites ----------- Power Ion Engine Engine Ion Engine Power Core Light Nuclear Core Reactor Cold Fusion Reactor Propulsion Aluminum Leg Leg Aluminum Leg Utility High-capacity Storage Unit Device Improved Heat Sink Storage High-capacity Storage Unit Processor Experimental Core Analyzer Hackware Makeshift Hacking Suite Protection Light Armor Plating Weapon Beam Cannon Energy Gun Small Laser Energy Cannon Beam Cannon Ballistic Gun 8R-AWN's Boregun Ballistic Cannon Light Cannon Launcher Grenade Launcher Build | -11 -10 -10 -10 -9 -8 ------- Run | Yrd Mat Min Exi Min Mat Slots Evolved 4 | . . . . . 4 Power . | . . . . . . Propulsion 2 | . . . . . 2 Utility 2 | . . . . . 2 Weapon . | . . . . . . Parts Attached 76 | 4 24 3 10 . 35 Power 6 | 1 3 . 1 . 1 Engine 4 | 1 2 . . . 1 Core 1 | . 1 . . . . Reactor 1 | . . . 1 . . Propulsion 29 | 2 10 . 3 . 14 Treads . | . . . . . . Leg 29 | 2 10 . 3 . 14 Wheel . | . . . . . . Hover . | . . . . . . Flight . | . . . . . . Utility 17 | 1 3 1 3 . 9 Device 4 | . 2 . . . 2 Storage 3 | 1 1 . . . 1 Processor 1 | . . . 1 . . Hackware 4 | . . . . . 4 Protection 5 | . . 1 2 . 2 Artifact . | . . . . . . Weapon 24 | . 8 2 3 . 11 Energy Gun 15 | . 5 . . . 10 Energy Cannon 2 | . . 1 1 . . Ballistic Gun 3 | . 1 . 1 . 1 Ballistic Cannon 1 | . 1 . . . . Launcher 3 | . 1 1 1 . . Special Weapon . | . . . . . . Impact Weapon . | . . . . . . Slashing Weapon . | . . . . . . Piercing Weapon . | . . . . . . Special Melee Weapon . | . . . . . . Unidentified Prototypes 7 | . . . 3 . 4 Parts Lost 20 | . 6 4 1 . 9 Power 2 | . 2 . . . . Propulsion 8 | . 1 2 . . 5 Utility 3 | . 1 . . . 2 Weapon 7 | . 2 2 1 . 2 Highest Loss Streak 4 | . 4 1 1 . 2 To Critical Strikes . | . . . . . . Average Backups 14 | 2 13 18 10 17 16 Power . | . 1 1 . 1 1 Propulsion 3 | . 5 6 2 2 1 Utility 5 | . 1 4 4 11 10 Weapon 4 | 1 4 7 2 3 4 Tool/Special . | . . . . . . Unused Backups 28 | . 2 . 10 . 16 Power 5 | . 1 . 4 . . Propulsion 2 | . 1 . 1 . . Utility 14 | . . . 2 . 12 Weapon 7 | . . . 3 . 4 Tool/Special . | . . . . . . Average Slot Usage (%) 96 | . 89 99 99 100 96 Engine 8 | . 7 14 8 . 3 Reactor 3 | . . . 5 14 5 Leg 29 | . 27 28 28 28 33 Device 3 | . 9 7 . . 1 Storage 10 | . 14 14 7 14 9 Processor 4 | . . . 4 14 9 Hackware 2 | . . . . . 11 Protection 7 | . . 6 16 . 4 Energy Gun 9 | . 19 11 . . 11 Energy Cannon 5 | . . 5 13 14 . Ballistic Gun 4 | . 1 . 7 14 5 Launcher 4 | . . 10 6 . . Peak Build Rating 65 | 4 12 12 46 46 65 Average Rating 25 | 3 9 10 21 46 56 On Entrance 19 | . 4 12 9 46 46 Avg Prop Armor Cover (%) . | . . . . . . Naked Turns . | . . . . . . Heaviest Build 75 | 10 50 54 61 61 75 Greatest Support 75 | 20 20 20 40 40 75 Greatest Overweight (x) 2 | . 2 2 2 1 1 Average Overweight (x) . | . 1 2 . 1 . Largest Inventory Capacity 20 | 8 20 20 20 20 20 Average Capacity 16 | 7 16 20 12 20 20 Most Carried 20 | 4 20 20 20 20 20 Average Carried 15 | 2 13 18 11 20 19 Final Capacity 20 | 8 20 20 20 20 20 Final Carried 20 | 4 20 19 20 20 19 Class Distribution -------------------- 49% | Scavenger-Mutant 44% | Mutant 6% | Hacker-Mutant Dominant Class ---------------- Scavenger-Mutant | -10/Materials Mutant | -10/Mines Mutant | -10/Exiles Scavenger-Mutant | -9/Mines Scavenger-Mutant | -8/Materials Resources | -11 -10 -10 -10 -9 -8 ----------- Run | Yrd Mat Min Exi Min Mat Matter Collected 2809 | 228 448 226 719 12 1176 Remotely . | . . . . . . Salvage Created 4195 | . 1044 37 360 15 2739 Parts 250 | . 45 11 55 2 137 Haulers Intercepted 7 | . 2 . . . 5 Recyclers Shooed 5 | . 2 . . 2 1 Parts Field Recycled . | . . . . . . Retrieved Matter . | . . . . . . Parts Self-Destructed . | . . . . . . Prevented . | . . . . . . Parts Restored . | . . . . . . Kills | -11 -10 -10 -10 -9 -8 ------- Run | Yrd Mat Min Exi Min Mat Combat Hostiles Destroyed 74 | . 19 11 3 1 40 Guns 53 | . 11 1 . 1 40 Cannons 8 | . 8 . . . . AOE 13 | . . 10 3 . . Classes Destroyed 15 | . 6 2 2 . 5 Worker 5 | . . 1 . . 4 Builder 5 | . 1 . . . 4 Tunneler 1 | . . . . . 1 Hauler 7 | . 2 . . . 5 Recycler 5 | . 2 . . . 3 Operator 1 | . . . . . 1 Turret 1 | . . . 1 . . Watcher 2 | . 1 . . . 1 Swarmer 8 | . 1 6 . 1 . Grunt 45 | . 18 . . . 27 Brawler 1 | . . . . . 1 Sentry 8 | . . . . . 8 Hunter 4 | . . . . . 4 Zionite 8 | . . . 8 . . Assembled 8 | . . 5 3 . . Best Kill Streak 7 | . 4 4 3 1 7 Combat Bots Only 6 | . 3 3 3 1 6 Max Kills in Single Turn 2 | . 1 2 1 1 2 Gunslinging 1 | . . . . . 1 Exploded 2 | . . 2 1 . . Melee . | . . . . . . Uniques/NPCs Destroyed 4 | . . . 4 . . 8R-AWN (-10/Exiles) EX-DEC (-10/Exiles) EX-BIN (-10/Exiles) EX-HEX (-10/Exiles) Combat | -11 -10 -10 -10 -9 -8 -------- Run | Yrd Mat Min Exi Min Mat Hostile Shots Fired 437 | . 149 30 29 10 219 Missed 124 | . 45 12 9 6 52 Hits 313 | . 104 18 20 4 167 Melee 1 | . . . . . 1 Projectile 312 | . 104 18 20 4 166 Critical Strikes 14 | . . . 7 . 7 Damage Taken 4314 | . 1166 267 297 29 2555 Core 789 | . 115 45 54 6 569 Absorbed by Shields . | . . . . . . Redirected to Shielding 57 | . . . . . 57 Core Remaining (%) 56 | 100 . . . 12 . Volleys Fired 386 | . 120 29 88 6 143 Largest 2 | . 2 2 2 2 2 Hottest 160 | . 105 105 120 90 160 Shots Fired 587 | . 212 42 97 12 224 Gun 493 | . 176 15 72 6 224 Cannon 70 | . 36 12 16 6 . Launcher 24 | . . 15 9 . . Special . | . . . . . . Kinetic 243 | . 63 . 72 6 102 Thermal 320 | . 149 27 16 6 122 Explosive 24 | . . 15 9 . . Electromagnetic . | . . . . . . Robot Hit Streak 14 | . 9 2 4 1 14 Robot Miss Streak 8 | . 5 3 4 5 8 Penetration Max 2 | . . . 1 . 2 Secondary Targets 4 | . 1 . . . 3 Max Gunslinging Chain 1 | . 1 . . . 1 Shots Hit Robots 344 | . 120 12 47 3 162 Core Hits 241 | . 46 16 26 1 152 Critical Kills 25 | . . . 4 1 20 Critical Parts Destroyed 35 | . . . 11 2 22 Critical Strikes 67 | . 5 . 17 3 42 Burn 3 | . 3 . . . . Destroy 62 | . . . 17 3 42 Blast 2 | . 2 . . . . Melee Attacks . | . . . . . . Impact . | . . . . . . Slashing . | . . . . . . Piercing . | . . . . . . Sneak Attacks . | . . . . . . Combat Hostiles . | . . . . . . Follow-up Attacks . | . . . . . . Damage Inflicted 6562 | . 1487 712 904 68 3391 Guns 5289 | . 1146 77 632 49 3385 Cannons 577 | . 341 70 147 19 . Explosions 690 | . . 565 125 . . Melee . | . . . . . . Ramming 6 | . . . . . 6 Kinetic 2439 | . 477 . 632 49 1281 Thermal 3427 | . 1010 147 147 19 2104 Explosive 690 | . . 565 125 . . Electromagnetic . | . . . . . . Impact . | . . . . . . Slashing . | . . . . . . Piercing . | . . . . . . Highest Corruption 2 | . . 1 1 1 2 Average Corruption 1 | . . 1 1 1 1 Corruption Purged . | . . . . . . Corruption Blocked . | . . . . . . Effects 29 | . . 2 23 3 1 Message Errors 6 | . . . 6 . . Matter Fused 7 | . . . 6 1 . Heat Flow Errors 3 | . . . 3 . . Energy Discharges 6 | . . 1 3 2 . Parts Rejected 1 | . . . . . 1 Data Loss (minor) 4 | . . 1 3 . . Misfires 1 | . . . 1 . . Alerts 1 | . . . 1 . . Overload Shots . | . . . . . . Overflow Damage 77 | . . 77 . . . Projectiles . | . . . . . . Explosions 77 | . . 77 . . . Melee . | . . . . . . Knockbacks 3 | . 3 . . . . Impact . | . . . . . . Kinetic 3 | . 3 . . . . Secondary . | . . . . . . Self-Inflicted Damage 78 | . . 78 . . . Shots 4 | . . 4 . . . Rammed . | . . . . . . Targets Rammed 1 | . . . . . 1 Kicked 1 | . . . . . 1 Crushed . | . . . . . . Highest Temperature 528 | . 354 528 238 75 501 Average Temperature 121 | . 95 229 57 35 159 Received Heat Transfer 1926 | . 612 . 9 . 1305 Effects 21 | . 3 5 . . 13 Shutdowns 6 | . 1 1 . . 4 Energy Bleed 2 | . . 1 . . 1 Interference 5 | . 2 1 . . 2 Matter Decay 4 | . . 1 . . 3 Short Circuit 1 | . . . . . 1 Damage (minor) 2 | . . . . . 2 Damage (major) 1 | . . 1 . . . Siege Activations . | . . . . . . Martial Activations . | . . . . . . Shielding Activations . | . . . . . . Robots Disrupted . | . . . . . . Combat Hostiles . | . . . . . . Robots Corrupted . | . . . . . . Combat Hostiles . | . . . . . . Parts Fried . | . . . . . . Impact Corruptions . | . . . . . . Robots Melted . | . . . . . . Combat Hostiles . | . . . . . . Parts Melted 10 | . 4 . 3 . 3 Heat Transferred 6741 | . 2564 323 332 37 3485 Parts Sabotaged . | . . . . . . Parts Stolen . | . . . . . . Parts Stripped . | . . . . . . Power Chain Reactions . | . . . . . . Alert | -11 -10 -10 -10 -9 -8 ------- Run | Yrd Mat Min Exi Min Mat Maximum Alert Level 2 | . . . . . 2 Low Security (%) 74 | 100 100 100 . 100 21 Level 1 14 | . . . . . 44 Level 2 11 | . . . . . 34 Level 3 . | . . . . . . Level 4 . | . . . . . . Level 5 . | . . . . . . High Security . | . . . . . . Max Security . | . . . . . . Peak Influence 672 | . 126 84 . 25 672 Initial 44 | . . 44 . . 1 Average 127 | . 38 16 . 3 333 Influence Increases 2256 | . 643 244 . 35 1334 Destroy 0b10 Robot/C 1320 | . 380 120 . 20 800 Destroy 0b10 Robot/NC 130 | . 30 5 . . 95 Destroy Leader 328 | . 86 20 . . 222 Successful Hack 36 | . 11 12 . . 13 Select Force Hacks 60 | . 60 . . . . Disable Machine 90 | . 15 . . . 75 Destroy Structure 112 | . 1 87 . . 24 Lose Combat Pursuer 180 | . 60 . . 15 105 Influence Decreases 1598 | . 529 358 . 30 681 Entered New Map 74 | . . 70 . . 4 Time Decay 1367 | . 485 265 . 30 587 Lost Part 157 | . 44 23 . . 90 Squads Dispatched 21 | . 6 . . . 15 Investigation 11 | . 4 . . . 7 Extermination . | . . . . . . Reinforcement 5 | . 2 . . . 3 Assault . | . . . . . . Garrison 5 | . . . . . 5 Intercept . | . . . . . . Searches Triggered . | . . . . . . Construction Impeded 1 | . . . . . 1 Haulers Reinforced . | . . . . . . Active Scanning Responses . | . . . . . . Cargo Convoy Interrupts . | . . . . . . Stealth | -11 -10 -10 -10 -9 -8 --------- Run | Yrd Mat Min Exi Min Mat Distress Signals 6 | . 2 . . . 4 Communications Jammed . | . . . . . . Distress Signals . | . . . . . . Times Spotted 135 | . 38 10 22 3 62 Peak Tracking Total 9 | . 3 3 9 2 8 Tactical Retreats 13 | . 3 . 5 1 4 Traps | -11 -10 -10 -10 -9 -8 ------- Run | Yrd Mat Min Exi Min Mat Traps Triggered 7 | . 5 . . . 2 Indirectly . | . . . . . . Trap Hack Attempts . | . . . . . . Triggered . | . . . . . . Disarmed . | . . . . . . Reprogrammed . | . . . . . . Reused . | . . . . . . Traps Extracted . | . . . . . . Installed . | . . . . . . Triggered . | . . . . . . Machines | -11 -10 -10 -10 -9 -8 ---------- Run | Yrd Mat Min Exi Min Mat Machines Disabled 23 | . 1 . 17 . 5 Max in Single Turn 2 | . 1 . 2 . 1 Garrison Access 1 | . . . . . 1 Machines Repaired . | . . . . . . Machines Dismantled . | . . . . . . Machines Sabotaged . | . . . . . . Overloaded Fab Kills . | . . . . . . Hacking | -11 -10 -10 -10 -9 -8 --------- Run | Yrd Mat Min Exi Min Mat Machines Accessed 20 | . 6 2 2 1 9 Terminals 12 | . 4 2 . . 6 Fabricators . | . . . . . . Repair Stations 1 | . . . . . 1 Recycling Units 2 | . 2 . . . . Scanalyzers 1 | . . . . . 1 Garrison Access 1 | . . . . . 1 Total Hacks 57 | . 16 6 2 1 32 Successful 24 | . 9 3 2 1 9 Failed 32 | . 6 3 . . 23 Catastrophic 3 | . . . . . 3 Database Lockouts 1 | . 1 . . . . Manual 36 | . 11 7 1 . 17 Terminals 41 | . 12 6 . . 23 Fabricators . | . . . . . . Repair Stations 4 | . . . . . 4 Recycling Units 4 | . 4 . . . . Scanalyzers 3 | . . . . . 3 Garrison Access 2 | . . . . . 2 Terminal Hacks 15 | . 5 3 2 1 4 Record 1 | . . . 1 . . Part Schematic 6 | . 3 . . . 3 Robot Analysis 3 | . . 3 . . . Prototype ID Bank 2 | . 1 . . . 1 Open Door 1 | . . . . 1 . Registered Components 1 | . 1 . . . . Proto ID Catalog 1 | . . . 1 . . Fabricator Hacks . | . . . . . . Repair Station Hacks 1 | . . . . . 1 Scan Component 1 | . . . . . 1 Recycling Unit Hacks 1 | . 1 . . . . Retrieve Components 1 | . 1 . . . . Scanalyzer 3 | . . . . . 3 Insert Component 1 | . . . . . 1 Analyze 1 | . . . . . 1 Retrieve Study 1 | . . . . . 1 Garrison Access Hacks 1 | . . . . . 1 Seal Access 1 | . . . . . 1 Unauthorized Hacks 3 | . 3 . . . . Terminals 1 | . 1 . . . . Botnet 1 | . 1 . . . . Fabricators . | . . . . . . Repair Stations . | . . . . . . Recycling Units 2 | . 2 . . . . Tunnel 2 | . 2 . . . . Scanalyzers . | . . . . . . Garrison Access . | . . . . . . Data Cores Recovered 1 | . . . . . 1 Used 1 | . . . . . 1 Hacking Detections 16 | . 5 2 . . 9 Full Trace Events 10 | . 1 2 . . 7 Feedback Events 2 | . . 1 . . 1 Corruption 1 | . . 1 . . . Hackware Fried 1 | . . . . . 1 Feedback Blocked . | . . . . . . Robot Schematics Acquired . | . . . . . . Robots Built . | . . . . . . Authchips . | . . . . . . Time . | . . . . . . Total Robot Build Rating . | . . . . . . Part Schematics Acquired 7 | . 3 . . . 4 Parts Built . | . . . . . . Authchips . | . . . . . . Time . | . . . . . . Total Part Build Rating . | . . . . . . Part Studies Acquired 1 | . . . . . 1 Parts Repaired . | . . . . . . Time . | . . . . . . Parts Recycled . | . . . . . . Recycled Matter . | . . . . . . Retrieved Matter . | . . . . . . Retrieved Components 9 | . 9 . . . . Parts Scanalyzed 1 | . . . . . 1 Part Schematics Acquired 1 | . . . . . 1 Parts Damaged . | . . . . . . Bothacking | -11 -10 -10 -10 -9 -8 ------------ Run | Yrd Mat Min Exi Min Mat Used RIF Installer . | . . . . . . Robots Hacked . | . . . . . . Non-combat . | . . . . . . Combat . | . . . . . . Robot Hacks Applied . | . . . . . . Relay Couplers Released . | . . . . . . Fabnet Peak Effective % . | . . . . . . Robots Rewired . | . . . . . . Allies Hacked . | . . . . . . Hacks Repelled . | . . . . . . Allies | -11 -10 -10 -10 -9 -8 -------- Run | Yrd Mat Min Exi Min Mat Total Allies . | . . . . . . Largest Group . | . . . . . . Highest-Rated Group . | . . . . . . Highest-Rated Ally . | . . . . . . Total Orders . | . . . . . . Ally Attacks 16 | . . . 16 . . Total Damage 947 | . . . 947 . . Kills 1 | . . . 1 . . Allies Corrupted . | . . . . . . Allies Melted . | . . . . . . Turrets Deployed 3 | . . . 3 . . Intel | -11 -10 -10 -10 -9 -8 ------- Run | Yrd Mat Min Exi Min Mat Active Infowar (turns) . | . . . . . . Robot Analysis Total 3 | . . 3 . . . Derelict Logs Recovered 1 | . . 1 . . . Drone Launches . | . . . . . . Drone Recoveries . | . . . . . . Exploration | -11 -10 -10 -10 -9 -8 ------------- Run | Yrd Mat Min Exi Min Mat Turns Passed 8909 | 67 1818 1950 2695 320 2059 Spaces Moved 3859 | 49 677 592 1459 144 938 Core 2 | 2 . . . . . Treads . | . . . . . . Legs 3857 | 47 677 592 1459 144 938 Wheels . | . . . . . . Hover . | . . . . . . Flight . | . . . . . . Fastest Speed 50 | 50 120 260 120 210 115 Average Speed 187 | 117 208 260 164 210 160 Slowest Speed 260 | 120 260 260 260 210 205 Overloaded Moves . | . . . . . . Propulsion Burnouts . | . . . . . . Robots Hopped 1 | . . . 1 . . Potential Cave-ins . | . . . . . . Cave-ins Triggered . | . . . . . . Exploration Rate (%) 61 | 4 81 85 90 44 64 Regions Visited 5 Branch Regions 3 Pre-discovered Areas 3 | . 2 . 1 . . Known Exits Taken . | . . . . . . Unknown Exits Taken 5 | 1 1 1 1 1 . Scrap Searched 2 | . . 2 . . . Spaces Dug 30 | . . 30 . . . Terrain Destroyed 171 | . . 113 30 1 27 Melee . | . . . . . . Projectile 33 | . . . 7 1 25 AOE 136 | . . 113 23 . . Terrain Rammed . | . . . . . . Walls Destroyed . | . . . . . . Machines Disabled . | . . . . . . Actions | -11 -10 -10 -10 -9 -8 --------- Run | Yrd Mat Min Exi Min Mat Total 4979 | 56 878 960 1674 151 1260 Wait 464 | . 11 330 35 . 88 Move 3852 | 48 676 591 1456 143 938 Hop 1 | . . . 1 . . Pick Up 87 | 4 27 3 38 1 14 Fast Attach 40 | 4 10 . 8 . 18 Attach 21 | . 8 4 . . 9 Detach 2 | . 1 . . . 1 Swap 39 | . 11 3 8 . 17 Drop 86 | . 14 . 40 1 31 Fire 386 | . 120 29 88 6 143 Melee . | . . . . . . Ram . | . . . . . . Kick 1 | . . . . . 1 Crush . | . . . . . . Escape Stasis . | . . . . . . Rewire . | . . . . . . Trap . | . . . . . . Miscellaneous . | . . . . . . Route ------- -11/Scrapyard -10/Materials (discovered 6 exits: [*Mat x3] / *Min x2 / [*Sub]) -10/Mines (discovered 3 exits: [*Mat x2] / *Exi) -10/Exiles -9/Mines -8/Materials (discovered 2 exits: [*Fac x2]) History --------- Turn | Location | Event 5 | -11/Scrapyard | Discovered new exit (range 15) 68 | -11/Scrapyard | Entered Materials 287 | -10/Materials | Lost 4 parts (1p1n2w) 484 | -10/Materials | Discovered new exit (range 9) 527 | -10/Materials | Discovered new exit (range 13) 548 | -10/Materials | Central database locked down 556 | -10/Materials | Build established: Scavenger-Mutant 583 | -10/Materials | Discovered new exit (range 16) 877 | -10/Materials | Discovered new exit (range 14) 1145 | -10/Materials | Build established: Mutant 1509 | -10/Materials | Build established: Scavenger-Mutant 1756 | -10/Materials | Discovered new exit (range 8) 1852 | -10/Materials | Discovered new exit (range 12) 1886 | -10/Materials | Entered Mines 2267 | -10/Mines | Discovered new exit (range 12) 2502 | -10/Mines | Assembled infested the area 2556 | -10/Mines | Build established: Mutant 3049 | -10/Mines | Core integrity fell below 50% 3529 | -10/Mines | Discovered new exit (range 8) 3763 | -10/Mines | Learned Materials non-interactive machine intel 3820 | -10/Mines | Deemed a non-threat by the Exiles lab entrance 3823 | -10/Mines | Discovered new exit (range 5) 3836 | -10/Mines | Entered Exiles 3896 | -10/Exiles | Met 8R-AWN 3946 | -10/Exiles | Met EX-HEX 4026 | -10/Exiles | Met EX-BIN 4057 | -10/Exiles | Aligned with FarCom system 4060 | -10/Exiles | Given EX-Vault access code 4148 | -10/Exiles | Opened EX-Vault 4158 | -10/Exiles | Found Deploy-a-Sentry 4161 | -10/Exiles | Found Deploy-a-Sentry 4165 | -10/Exiles | Found Deploy-a-Sentry 4221 | -10/Exiles | Warned to stay clear of 0b10 Research branches 4293 | -10/Exiles | Met EX-DEC 4896 | -10/Exiles | Learned location of Zion (-7) 4920 | -10/Exiles | Attacked by the Exiles 4977 | -10/Exiles | DAS Turret deployed 4986 | -10/Exiles | DAS Turret deployed 4995 | -10/Exiles | DAS Turret deployed 5035 | -10/Exiles | Allies destroyed 8R-AWN 5048 | -10/Exiles | Found Prototype Ballistic Gun 5048 | -10/Exiles | Identified 8R-AWN's Boregun 5425 | -10/Exiles | Core integrity fell below 20% 5476 | -10/Exiles | Destroyed EX-DEC 5520 | -10/Exiles | Destroyed EX-BIN 5550 | -10/Exiles | Destroyed EX-HEX 5592 | -10/Exiles | Found Prototype Processor 5592 | -10/Exiles | Identified Exp. Core Analyzer 5895 | -10/Exiles | Build established: Scavenger-Mutant 6029 | -10/Exiles | Found Deploy-a-Sentry 6312 | -10/Exiles | Found YOLO Cannon 6322 | -10/Exiles | Found Firepult 6510 | -10/Exiles | Discovered new exit (range 10) 6531 | -10/Exiles | Stole three prototypes: Firepult, YOLO Cannon, Deploy-a-Sentry 6531 | -10/Exiles | Entered Mines 6541 | -9/Mines | Found the Drone Emporium 6555 | -9/Mines | Found Prototype Device 6837 | -9/Mines | Discovered new exit (range 8) 6851 | -9/Mines | Entered Materials 6851 | -8/Materials | Evolved 4 slots: Propulsion x2, Utility x2 6852 | -8/Materials | Loaded intel: 40 non-interactive machine locations 6863 | -8/Materials | Identified Sensor Drone Bay 7210 | -8/Materials | EX Chip 2 fried by hacking feedback 7702 | -8/Materials | Discovered new exit (range 5) 7953 | -8/Materials | Garrison activated, responded to threat 8102 | -8/Materials | Garrison activated, responded to threat 8188 | -8/Materials | Core integrity fell below 50% 8429 | -8/Materials | Core integrity fell below 20% 8434 | -8/Materials | Garrison activated, responded to threat 8578 | -8/Materials | Discovered new exit (range 16) 8598 | -8/Materials | Build established: Hacker-Mutant 8910 | -8/Materials | Destroyed by H-55 Commando with Gauss Rifle Last Messages --------------- 08804_ The floor emits a surge of raw power. 08804_ System corrupted (+1). 08811_ Connecting with Terminal... 08811_ ALERT: Suspicious activity at Terminal M002. Dispatching Investigation squad. 08811_ Triggered Shock Trap. 08811_ The floor emits a surge of raw power. 08811_ System corrupted (+1). 08838_ Titanium Leg+ destroyed. 08843_ G-47 Trooper destroyed. 08844_ Titanium Leg+ destroyed. 08846_ Critical hit (Burn: +37). 08846_ G-47 Trooper destroyed. 08858_ System corrupted: Gatling Laser rejected. 08858_ Acquired Gatling Laser. 08861_ Acquired 15 matter. 08869_ Acquired Aluminum Leg. 08898_ Penetrated by Slug. 08908_ R-06 Scavenger collects Lgt. Deuterium Engine. 08910_ Penetrated by Slug. Map ----- +----------------------------------------------------+ | | | | | | | | | ?????????????????????????????????????????????????? | | ?????????????????????????????????????????????????? | | ?????????????????????????????????????????????????? | | ?????????????????????????????????????????????????? | | ?????????????????????????????????????????????????? | | ?????????????????????????????????????????????????? | | ?????????????????????????????????????????????????? | | ####?????????????????????????????????????????????? | | # ?????????????##########??????????????????????? | | # ?#???????# #??????????????????????? | | # """ #???????# ! "" #??????????????????????? | | # """"" #???????# T" #??????????????????????? | | # """"" #???????# [ "" #??????????????????????? | | # """"" #???????# #??????????????????????? | | # "" #???????# """ #?????????????????????## | | #! #???????# """ #??????????????######## | | #* #???????#! """ #??????????????# # | | ##+#######???????# = #??????????????# # | | *% #???????????#####+################### + | | #??????????????# +% + # # | | ################ # ##### # | | ## h @ # #???# # | | ?# ################ r %= +% #???######## | | ?# #??????????????# ####### #??????##! | | ?# #??????????????# #?????# #??????#! | | ## ###????????????# #?????########??????#! | | #????????????# #???????????????????#! | | #????????????# #???????????????????#! | | #????????????# #???????????????????##! | | +?"""????????+ #######??#???????????#### | | #?"""????????# # #???##?????????# | | #?"""????????# # """ #??## ########## | | #????????????# # """ #??# % # | | # ##????????????# # """ #??# # | | # #?????????????# # #??# """ # | | # #?????????????# # """ #??# """ # | | #????########## # """ #??? """ !# | | %###### # # """ #?????T" # | | # = + """ # # #??????? ??# | | # ###### """ # #####+#############+##### | | ##### #????#* """ # ^ | | ##### ###### %+% ^ ! | | #]]= [[##"S % =# | | #]] ##""" [ # / % #########+#### | | # ==## "" # ^ #?????? !% ?? | | #[ !* ==## # "" """ #?????# """ | +----------------------------------------------------+ Best States ------------- Heat Dissipation 50 Energy Generation 17 Energy Capacity 250 Matter Stores 300 Matter Capacity 300 Sight Range 16 Terrain Scan Density 10 Armor Coverage 300 Power Shielding 66 Evasion (%) 55 Core Analysis 8 Offensive Hacking 22 Defensive Hacking 7 Authchip Count 3 Item Schematics ----------------- Hcp. Storage Unit | -10/Materials | Hacked Aluminum Leg | -10/Materials | Hacked Med. Laser | -10/Materials | Hacked Lgt. Armor Plating | -8/Materials | Hacked Targeting Computer | -8/Materials | Hacked Hacking Suite | -8/Materials | Hacked Titanium Leg | -8/Materials | Scanalyzed Robot Schematics ------------------ None Fabricated ------------ Nothing Repaired ---------- Nothing Studied --------- Titanium Leg | -8/Materials | Hacked Alien Tech Used ----------------- None Achievements -------------- Who Guards The Bodyguard? Challenges ------------ None Game ------ Seed NetworkRefineryInterrupter Manual? 0 Play Time 00:51:50 Cumulative 282.7 hours Start 2025.11.17 @ 19:03:29 End 2025.11.17 @ 19:57:38 Sessions 1 Manual Loads 0 Difficulty Rogue Special Mode None Game No. 305 Rogue 301 Adventurer 3 Explorer 1 Win Type - Total 1 Types 1/0/0/0/0/0/0/0/0/0 Lore% 78 Gallery% 76 Achievement% 61 Wizard Run 0 Options --------- Layout 0 ASCII 0 Keyboard 0 Movement Mouse Keybinds 0 Fullscreen 2 Font 18/SmallcapsGlow Map View 76x50 Zoom Use 0% Tactical HUD 1 Map Filters NONE Filters NONE Steam 1 RUN: 0b5be37f-a1f5-481b-ab99-5dc555aaa748